fUST/lending_fUST_20250208
["ID","MTS","AMOUNT","RATE_DAILY","PERIOD"]
[352258504,1739020234073,-500.0,0.00010958,2]
[352258506,1739020234083,-756.86,0.00010958,2]
[352258508,1739020234092,-500.0,0.00010958,2]
[352258510,1739020234102,-500.0,0.00010958,2]
[352258512,1739020234111,-500.0,0.00010958,2]
[352258514,1739020234121,-967.19,0.00010958,2]
[352258516,1739020234130,-500.0,0.00010958,2]
[352258517,1739020234140,-500.0,0.00010958,2]
[352258519,1739020234150,-500.0,0.00010958,2]
[352258521,1739020234159,-500.0,0.00010958,2]
[352258523,1739020234168,-500.0,0.00010958,2]
[352258524,1739020234178,-500.0,0.00010958,2]
[352258525,1739020234354,-500.0,0.00010958,2]
[352258526,1739020234364,-500.0,0.00010958,2]
[352258527,1739020234374,-575.35366207,0.00010958,2]
[352258528,1739020234384,-689.25,0.00010958,2]
[352258529,1739020234394,-1134.27,0.00010958,2]
[352258530,1739020234403,-155.62000325,0.00010958,2]
[352258531,1739020234413,-500.0,0.00010958,2]
[352258532,1739020234422,-500.0,0.00010958,2]
[352258533,1739020234433,-806.67,0.00010958,2]
[352258534,1739020234443,-370.0,0.00010958,2]
[352258535,1739020234453,-615.34648727,0.00010958,2]
[352258536,1739020234463,-500.0,0.00010958,2]
[352258537,1739020234473,-500.0,0.00010958,2]
[352258538,1739020234482,-500.0,0.00010958,2]
[352258539,1739020234493,-500.0,0.00010958,2]
[352258540,1739020234503,-500.0,0.00010958,2]
[352258541,1739020234513,-500.0,0.00010958,2]
[352258542,1739020234523,-500.0,0.00010958,2]
[352258543,1739020234533,-500.0,0.00010958,2]
[352258544,1739020234544,-744.46,0.00010958,2]
[352258545,1739020234554,-500.0,0.00010958,2]
[352258546,1739020234563,-500.0,0.00010958,2]
[352258547,1739020234573,-500.0,0.00010958,2]
[352258548,1739020234583,-500.0,0.00010958,2]
[352258549,1739020234593,-500.0,0.00010958,2]
[352258550,1739020234602,-518.1928402,0.00010958,2]
[352258551,1739020234611,-500.0,0.00010958,2]
[352258552,1739020234621,-500.0,0.00010958,2]
[352258553,1739020234630,-500.0,0.00010958,2]
[352258554,1739020234640,-744.3,0.00010958,2]
[352258555,1739020234649,-1565.45,0.00010958,2]
[352258556,1739020234658,-500.0,0.00010958,2]
[352258557,1739020234667,-500.0,0.00010958,2]
[352258558,1739020234676,-1742.34,0.00010958,2]
[352258559,1739020234686,-1529.08,0.00010958,2]
[352258560,1739020234696,-500.0,0.00010958,2]
[352258561,1739020234706,-500.0,0.00010958,2]
[352258562,1739020234715,-500.0,0.00010958,2]
[352258563,1739020234725,-1161.64,0.00010958,2]
[352258564,1739020234735,-561.63,0.00010958,2]
[352258565,1739020234744,-500.0,0.00010958,2]
[352258566,1739020234754,-1104.87,0.00010958,2]
[352258567,1739020234763,-500.0,0.00010958,2]
[352258568,1739020234772,-4366.95,0.00010958,2]
[352258569,1739020234782,-501.59986121,0.00010958,2]
[352258570,1739020234791,-466.12527178,0.00010958,2]
[352258571,1739020234800,-500.0,0.00010958,2]
[352258572,1739020234813,-500.0,0.00010958,2]
[352258573,1739020234823,-500.0,0.00010958,2]
[352258574,1739020234831,-500.0,0.00010958,2]
[352258575,1739020234841,-500.0,0.00010958,2]
[352258576,1739020234852,-1247.39,0.00010958,2]
[352258577,1739020234861,-500.0,0.00010958,2]
[352258578,1739020234870,-500.0,0.00010958,2]
[352258579,1739020234880,-500.0,0.00010958,2]
[352258580,1739020234891,-1350.12,0.00010958,2]
[352258581,1739020234901,-500.0,0.00010958,2]
[352258582,1739020234910,-162.77288074,0.00010958,2]
[352258583,1739020234919,-500.0,0.00010958,2]
[352258584,1739020234928,-500.0,0.00010958,2]
[352258585,1739020234938,-500.0,0.00010958,2]
[352258586,1739020234947,-500.0,0.00010958,2]
[352258587,1739020234956,-500.0,0.00010958,2]
[352258588,1739020234965,-500.0,0.00010958,2]
[352258589,1739020234975,-1064.26,0.00010958,2]
[352258590,1739020234985,-500.0,0.00010958,2]
[352258591,1739020234994,-500.0,0.00010958,2]
[352258592,1739020235003,-500.0,0.00010958,2]
[352258593,1739020235014,-500.0,0.00010958,2]
[352258594,1739020235023,-500.0,0.00010958,2]
[352258595,1739020235032,-500.0,0.00010958,2]
[352258596,1739020235043,-500.0,0.00010958,2]
[352258597,1739020235052,-500.0,0.00010958,2]
[352258598,1739020235062,-500.0,0.00010958,2]
[352258599,1739020235073,-500.0,0.00010958,2]
[352258600,1739020235082,-1799.69,0.00010958,2]
[352258601,1739020235092,-500.0,0.00010958,2]
[352258602,1739020235101,-500.80239085,0.00010958,2]
[352258603,1739020235111,-500.0,0.00010958,2]
[352258604,1739020235121,-500.0,0.00010958,2]
[352258605,1739020235130,-500.0,0.00010958,2]
[352258606,1739020235140,-500.0,0.00010958,2]
[352258607,1739020235150,-500.0,0.00010958,2]
[352258608,1739020235159,-500.0,0.00010958,2]
[352258609,1739020235169,-500.0,0.00010958,2]
[352258610,1739020235179,-500.0,0.00010958,2]
[352258611,1739020235189,-500.0,0.00010958,2]
[352258612,1739020235198,-500.0,0.00010958,2]
[352258613,1739020235208,-1340.21,0.00010958,2]
[352258614,1739020235217,-500.0,0.00010958,2]
[352258615,1739020235227,-500.0,0.00010958,2]
[352258616,1739020235237,-500.0,0.00010958,2]
[352258617,1739020235246,-500.0,0.00010958,2]
[352258618,1739020235256,-1601.91,0.00010958,2]
[352258619,1739020235265,-500.0,0.00010958,2]
[352258620,1739020235275,-500.0,0.00010958,2]
[352258621,1739020235284,-501.15220094,0.00010958,2]
[352258622,1739020235295,-500.0,0.00010958,2]
[352258623,1739020235304,-500.0,0.00010958,2]
[352258624,1739020235313,-500.0,0.00010958,2]
[352258625,1739020235323,-500.0,0.00010958,2]
[352258626,1739020235333,-500.0,0.00010958,2]
[352258627,1739020235343,-500.0,0.00010958,2]
[352258628,1739020235352,-246.24229999,0.00010958,2]
[352258629,1739020235362,-1183.35860413,0.00010958,2]
[352258652,1739020238141,-3372.58139587,0.00010958,2]
[352258655,1739020238151,-500.0,0.00010958,2]
[352258657,1739020238160,-500.0,0.00010958,2]
[352258659,1739020238170,-1978.7002682,0.00010958,2]
[352258661,1739020238182,-48037.2997318,0.00010958,2]
[352258663,1739020238192,-500.0,0.00010958,2]
[352258665,1739020238202,-2318.04,0.00010958,2]
[352258667,1739020238211,-17861.49,0.00010958,2]
[352258669,1739020238221,-5857.31,0.00010958,2]
[352258671,1739020238231,-500.0,0.00010958,2]
[352258673,1739020238240,-500.0,0.00010958,2]
[352258675,1739020238251,-500.0,0.00010958,2]
[352258677,1739020238260,-500.0,0.00010958,2]
[352258679,1739020238270,-404.03019968,0.00010958,2]
[352258681,1739020238279,-1690.02,0.00010958,2]
[352258683,1739020238289,-500.0,0.00010958,2]
[352258685,1739020238300,-2218.69,0.00010958,2]
[352258687,1739020238309,-500.0,0.00010958,2]
[352258690,1739020238319,-1951.84,0.00010958,2]
[352258691,1739020238328,-500.0,0.00010958,2]
[352258694,1739020238338,-1303.76,0.00010958,2]
[352258696,1739020238347,-500.0,0.00010958,2]
[352258698,1739020238356,-500.0,0.00010958,2]
[352258700,1739020238366,-500.0,0.00010958,2]
[352258702,1739020238375,-500.0,0.00010958,2]
[352258703,1739020238384,-500.0,0.00010958,2]
[352258705,1739020238394,-500.0,0.00010958,2]
[352258708,1739020238403,-500.0,0.00010958,2]
[352258710,1739020238413,-500.0,0.00010958,2]
[352258712,1739020238422,-1497.34,0.00010958,2]
[352258714,1739020238432,-500.0,0.00010958,2]
[352258716,1739020238442,-500.0,0.00010958,2]
[352258718,1739020238451,-500.0,0.00010958,2]
[352258720,1739020238461,-559.35,0.00010958,2]
[352258722,1739020238470,-856.38,0.00010958,2]
[352258724,1739020238479,-500.0,0.00010958,2]
[352258726,1739020238489,-2142.8,0.00010958,2]
[352258728,1739020238498,-500.0,0.00010958,2]
[352258730,1739020238507,-2004.33,0.00010958,2]
[352258732,1739020238516,-500.0,0.00010958,2]
[352258734,1739020238525,-500.0,0.00010958,2]
[352258736,1739020238535,-500.0,0.00010958,2]
[352258738,1739020238544,-500.0,0.00010958,2]
[352258740,1739020238555,-500.0,0.00010958,2]
[352258742,1739020238564,-500.0,0.00010958,2]
[352258744,1739020238573,-681.13,0.00010958,2]
[352258746,1739020238583,-500.0,0.00010958,2]
[352258748,1739020238592,-500.0,0.00010958,2]
[352258750,1739020238602,-500.0,0.00010958,2]
[352258752,1739020238612,-500.0,0.00010958,2]
[352258754,1739020238622,-500.0,0.00010958,2]
[352258756,1739020238631,-500.0,0.00010958,2]
[352258758,1739020238640,-500.0,0.00010958,2]
[352258760,1739020238650,-176.13621671,0.00010958,2]
[352258762,1739020238659,-500.0,0.00010958,2]
[352258764,1739020238668,-9714.05,0.00010958,2]
[352258766,1739020238678,-500.0,0.00010958,2]
[352258769,1739020238688,-500.0,0.00010958,2]
[352258771,1739020238697,-500.0,0.00010958,2]
[352258773,1739020238706,-500.0,0.00010958,2]
[352258774,1739020238715,-500.0,0.00010958,2]
[352258776,1739020238724,-500.0,0.00010958,2]
[352258778,1739020238733,-500.0,0.00010958,2]
[352258780,1739020238742,-500.0,0.00010958,2]
[352258782,1739020238752,-4099.51,0.00010958,2]
[352258784,1739020238762,-343.30206826,0.00010958,2]
[352258787,1739020238771,-500.0,0.00010958,2]
[352258789,1739020238782,-500.0,0.00010958,2]
[352258791,1739020238792,-500.0,0.00010958,2]
[352258793,1739020238802,-852.48,0.00010958,2]
[352258795,1739020238815,-500.0,0.00010958,2]
[352258797,1739020238824,-500.0,0.00010958,2]
[352258799,1739020238834,-3582.6,0.00010958,2]
[352258801,1739020238845,-4612.53,0.00010958,2]
[352258803,1739020238855,-500.0,0.00010958,2]
[352258805,1739020238864,-3998.5,0.00010958,2]
[352258807,1739020238873,-500.0,0.00010958,2]
[352258809,1739020238883,-500.0,0.00010958,2]
[352258811,1739020238892,-1751.59,0.00010958,2]
[352258813,1739020238901,-500.0,0.00010958,2]
[352258815,1739020238910,-513.98,0.00010958,2]
[352258817,1739020238919,-500.0,0.00010958,2]
[352258819,1739020238929,-500.0,0.00010958,2]
[352258821,1739020238938,-500.0,0.00010958,2]
[352258823,1739020238947,-500.0,0.00010958,2]
[352258825,1739020238957,-500.0,0.00010958,2]
[352258827,1739020238966,-500.0,0.00010958,2]
[352258829,1739020238975,-500.0,0.00010958,2]
[352258831,1739020238984,-1674.8,0.00010958,2]
[352258833,1739020238994,-1193.83,0.00010958,2]
[352258835,1739020239003,-500.0,0.00010958,2]
[352258837,1739020239012,-500.0,0.00010958,2]
[352258839,1739020239021,-675.14,0.00010958,2]
[352258841,1739020239030,-1569.82,0.00010958,2]
[352258843,1739020239039,-500.0,0.00010958,2]
[352258845,1739020239048,-500.0,0.00010958,2]
[352258847,1739020239058,-500.0,0.00010958,2]
[352258849,1739020239067,-500.0,0.00010958,2]
[352258851,1739020239076,-1379.38,0.00010958,2]
[352258853,1739020239085,-1092.67,0.00010958,2]
[352258855,1739020239094,-500.0,0.00010958,2]
[352258857,1739020239103,-500.0,0.00010958,2]
[352258859,1739020239112,-931.63,0.00010958,2]
[352258861,1739020239121,-16827.92,0.00010958,2]
[352258863,1739020239130,-500.0,0.00010958,2]
[352258865,1739020239139,-500.0,0.00010958,2]
[352258867,1739020239149,-1194.58,0.00010958,2]
[352258869,1739020239158,-500.0,0.00010958,2]
[352258871,1739020239167,-676.98,0.00010958,2]
[352258873,1739020239177,-500.0,0.00010958,2]
[352258875,1739020239186,-500.0,0.00010958,2]
[352258877,1739020239195,-500.0,0.00010958,2]
[352258879,1739020239204,-576.62971255,0.00010958,2]
[352258881,1739020239213,-500.0,0.00010958,2]
[352258883,1739020239222,-1149.7,0.00010958,2]
[352258885,1739020239231,-624.99243347,0.00010958,2]
[352258887,1739020239239,-449.36,0.00010959,2]
[352258889,1739020239249,-430.48,0.00010959,2]
[352258891,1739020239258,-358.74,0.00010959,2]
[352258893,1739020239267,-298.95,0.00010959,2]
[352258895,1739020239277,-500.0,0.00010973,2]
[352258897,1739020239287,-500.0,0.00010973,2]
[352258900,1739020239297,-151.91283573,0.00010973,2]
[352258901,1739020239306,-500.0,0.00010973,2]
[352258904,1739020239315,-621.70952141,0.00010973,2]
[352258905,1739020239324,-500.0,0.00010973,2]
[352258907,1739020239334,-500.0,0.00010973,2]
[352258909,1739020239343,-500.0,0.00010973,2]
[352258911,1739020239352,-500.0,0.00010999,2]
[352258914,1739020239362,-500.0,0.00010999,2]
[352258916,1739020239371,-346.6,0.00010999,2]
[352258918,1739020239381,-159.0,0.00011,2]
[352258920,1739020239390,-16240.33730466,0.00011,2]
[352258924,1739020239424,-33759.66269534,0.00011,2]
[352258926,1739020239434,-252.86593071,0.00011094,2]
[352258928,1739020239443,-500.0,0.00011094,2]
[352258930,1739020239452,-500.0,0.00011094,2]
[352258932,1739020239462,-500.0,0.00011094,2]
[352258934,1739020239471,-349.81014481,0.00011094,2]
[352258936,1739020239481,-500.0,0.00011095,2]
[352258938,1739020239490,-500.0,0.00011095,2]
[352258940,1739020239500,-500.0,0.00011095,2]
[352258942,1739020239509,-500.0,0.00011095,2]
[352258944,1739020239519,-500.0,0.00011095,2]
[352258946,1739020239528,-500.0,0.00011095,2]
[352258948,1739020239538,-500.0,0.00011095,2]
[352258950,1739020239550,-500.0,0.00011095,2]
[352258952,1739020239563,-733.72,0.00011095,2]
[352258954,1739020239573,-500.0,0.00011095,2]
[352258957,1739020239588,-500.0,0.00011095,2]
[352258959,1739020239597,-429.87078119,0.00011095,2]
[352258961,1739020239607,-512.02,0.00011095,2]
[352258963,1739020239616,-500.0,0.00011095,2]
[352258965,1739020239626,-500.0,0.00011095,2]
[352258967,1739020239635,-500.0,0.00011095,2]
[352258969,1739020239644,-500.0,0.00011095,2]
[352258971,1739020239653,-500.0,0.00011095,2]
[352258973,1739020239663,-500.0,0.00011095,2]
[352258975,1739020239672,-500.0,0.00011095,2]
[352258977,1739020239681,-747.94,0.00011095,2]
[352258979,1739020239690,-500.0,0.00011095,2]
[352258981,1739020239700,-500.0,0.00011095,2]
[352258983,1739020239709,-500.0,0.00011095,2]
[352258985,1739020239718,-500.0,0.00011095,2]
[352258988,1739020239728,-500.0,0.00011095,2]
[352258991,1739020239737,-500.0,0.00011095,2]
[352258993,1739020239746,-500.0,0.00011095,2]
[352258995,1739020239755,-833.91,0.00011095,2]
[352258997,1739020239764,-500.0,0.00011095,2]
[352258999,1739020239774,-500.0,0.00011095,2]
[352259001,1739020239783,-500.0,0.00011095,2]
[352259003,1739020239794,-500.0,0.00011095,2]
[352259018,1739020239804,-500.0,0.00011095,2]
[352259021,1739020239948,-500.0,0.00011095,2]
[352259023,1739020239957,-500.0,0.00011095,2]
[352259025,1739020239967,-1398.89,0.00011095,2]
[352259027,1739020239976,-575.61,0.00011095,2]
[352259029,1739020239985,-608.77,0.00011095,2]
[352259031,1739020239995,-500.0,0.00011095,2]
[352259033,1739020240004,-1474.17,0.00011095,2]
[352259035,1739020240014,-500.0,0.00011095,2]
[352259037,1739020240023,-500.0,0.00011095,2]
[352259039,1739020240032,-500.0,0.00011095,2]
[352259041,1739020240044,-500.0,0.00011095,2]
[352259043,1739020240053,-501.96,0.00011095,2]
[352259045,1739020240063,-500.0,0.00011095,2]
[352259047,1739020240073,-500.0,0.00011095,2]
[352259049,1739020240083,-500.0,0.00011095,2]
[352259051,1739020240092,-438.53863776,0.00011095,2]
[352259053,1739020240101,-1079.22,0.00011095,2]
[352259055,1739020240111,-500.0,0.00011095,2]
[352259057,1739020240121,-500.0,0.00011095,2]
[352259059,1739020240130,-500.0,0.00011095,2]
[352259061,1739020240139,-500.0,0.00011095,2]
[352259063,1739020240148,-500.0,0.00011095,2]
[352259065,1739020240158,-500.0,0.00011095,2]
[352259067,1739020240167,-500.0,0.00011095,2]
[352259069,1739020240177,-500.0,0.00011095,2]
[352259071,1739020240186,-500.0,0.00011095,2]
[352259073,1739020240196,-500.0,0.00011095,2]
[352259075,1739020240205,-500.0,0.00011095,2]
[352259077,1739020240215,-1248.8,0.00011095,2]
[352259079,1739020240225,-729.59,0.00011095,2]
[352259081,1739020240234,-500.0,0.00011095,2]
[352259083,1739020240244,-500.0,0.00011095,2]
[352259085,1739020240253,-1512.36,0.00011095,2]
[352259087,1739020240263,-500.0,0.00011095,2]
[352259089,1739020240273,-500.0,0.00011095,2]
[352259091,1739020240289,-500.0,0.00011095,2]
[352259093,1739020240300,-500.0,0.00011095,2]
[352259095,1739020240310,-510.0,0.00011095,2]
[352259097,1739020240319,-756.86,0.00011095,2]
[352259099,1739020240329,-500.0,0.00011095,2]
[352259101,1739020240338,-967.19,0.00011095,2]
[352259103,1739020240348,-500.0,0.00011095,2]
[352259105,1739020240358,-500.0,0.00011095,2]
[352259107,1739020240367,-500.0,0.00011095,2]
[352259109,1739020240376,-500.0,0.00011095,2]
[352259111,1739020240385,-689.25,0.00011095,2]
[352259113,1739020240395,-1134.27,0.00011095,2]
[352259115,1739020240404,-500.0,0.00011095,2]
[352259117,1739020240413,-806.67,0.00011095,2]
[352259119,1739020240425,-526.53405721,0.00011095,2]
[352259121,1739020240434,-500.0,0.00011095,2]
[352259123,1739020240443,-500.0,0.00011095,2]
[352259125,1739020240452,-500.0,0.00011095,2]
[352259127,1739020240463,-744.46,0.00011095,2]
[352259129,1739020240473,-500.0,0.00011095,2]
[352259131,1739020240482,-500.0,0.00011095,2]
[352259133,1739020240492,-500.0,0.00011095,2]
[352259135,1739020240505,-744.3,0.00011095,2]
[352259137,1739020240516,-1565.45,0.00011095,2]
[352259139,1739020240525,-500.0,0.00011095,2]
[352259140,1739020240534,-500.0,0.00011095,2]
[352259141,1739020240543,-1742.34,0.00011095,2]
[352259142,1739020240552,-1529.08,0.00011095,2]
[352259143,1739020240561,-500.0,0.00011095,2]
[352259144,1739020240570,-500.0,0.00011095,2]
[352259145,1739020240579,-1161.64,0.00011095,2]
[352259146,1739020240588,-500.0,0.00011095,2]
[352259147,1739020240597,-243.74158017,0.00011095,2]
[352259148,1739020240606,-4366.95,0.00011095,2]
[352259149,1739020240615,-500.0,0.00011095,2]
[352259150,1739020240625,-500.0,0.00011095,2]
[352259151,1739020240634,-500.0,0.00011095,2]
[352259152,1739020240644,-1247.39,0.00011095,2]
[352259153,1739020240654,-500.0,0.00011095,2]
[352259154,1739020240663,-500.0,0.00011095,2]
[352259155,1739020240671,-500.0,0.00011095,2]
[352259156,1739020240680,-1350.12,0.00011095,2]
[352259157,1739020240689,-500.0,0.00011095,2]
[352259158,1739020240699,-500.0,0.00011095,2]
[352259159,1739020240708,-223.99599155,0.00011095,2]
[352259160,1739020240717,-500.0,0.00011095,2]
[352259161,1739020240726,-500.0,0.00011095,2]
[352259162,1739020240735,-500.0,0.00011095,2]
[352259163,1739020240744,-500.0,0.00011095,2]
[352259164,1739020240753,-1064.26,0.00011095,2]
[352259166,1739020240763,-500.0,0.00011095,2]
[352259168,1739020240772,-500.0,0.00011095,2]
[352259170,1739020240782,-500.0,0.00011095,2]
[352259172,1739020240791,-500.0,0.00011095,2]
[352259174,1739020240801,-500.0,0.00011095,2]
[352259176,1739020240814,-500.0,0.00011095,2]
[352259178,1739020240823,-1799.69,0.00011095,2]
[352259180,1739020240832,-1340.21,0.00011095,2]
[352259182,1739020240842,-500.0,0.00011095,2]
[352259184,1739020240853,-1601.91,0.00011095,2]
[352259186,1739020240862,-500.0,0.00011095,2]
[352259188,1739020240871,-500.0,0.00011095,2]
[352259190,1739020240881,-500.0,0.00011095,2]
[352259192,1739020240890,-4555.94,0.00011095,2]
[352259194,1739020240900,-500.0,0.00011095,2]
[352259196,1739020240910,-50016.0,0.00011095,2]
[352259198,1739020240919,-2318.04,0.00011095,2]
[352259200,1739020240929,-17861.49,0.00011095,2]
[352259202,1739020240938,-5857.31,0.00011095,2]
[352259204,1739020240947,-500.0,0.00011095,2]
[352259206,1739020240957,-500.0,0.00011095,2]
[352259208,1739020240966,-500.0,0.00011095,2]
[352259210,1739020240975,-1690.02,0.00011095,2]
[352259212,1739020240984,-500.0,0.00011095,2]
[352259214,1739020240994,-2218.69,0.00011095,2]
[352259216,1739020241004,-1951.84,0.00011095,2]
[352259218,1739020241013,-500.0,0.00011095,2]
[352259220,1739020241022,-1303.76,0.00011095,2]
[352259222,1739020241030,-500.0,0.00011095,2]
[352259224,1739020241040,-500.0,0.00011095,2]
[352259226,1739020241050,-500.0,0.00011095,2]
[352259228,1739020241059,-500.0,0.00011095,2]
[352259230,1739020241068,-500.0,0.00011095,2]
[352259232,1739020241077,-500.0,0.00011095,2]
[352259234,1739020241086,-500.0,0.00011095,2]
[352259236,1739020241095,-1497.34,0.00011095,2]
[352259239,1739020241105,-500.0,0.00011095,2]
[352259241,1739020241115,-500.0,0.00011095,2]
[352259243,1739020241124,-559.35,0.00011095,2]
[352259245,1739020241133,-856.38,0.00011095,2]
[352259247,1739020241142,-500.0,0.00011095,2]
[352259249,1739020241151,-2142.8,0.00011095,2]
[352259251,1739020241161,-500.0,0.00011095,2]
[352259253,1739020241170,-2004.33,0.00011095,2]
[352259255,1739020241179,-500.0,0.00011095,2]
[352259257,1739020241188,-500.0,0.00011095,2]
[352259259,1739020241198,-681.13,0.00011095,2]
[352259261,1739020241207,-500.0,0.00011095,2]
[352259263,1739020241215,-500.0,0.00011095,2]
[352259265,1739020241225,-500.0,0.00011095,2]
[352259267,1739020241234,-500.0,0.00011095,2]
[352259268,1739020241243,-9714.05,0.00011095,2]
[352259270,1739020241252,-500.0,0.00011095,2]
[352259272,1739020241261,-500.0,0.00011095,2]
[352259274,1739020241271,-500.0,0.00011095,2]
[352259276,1739020241280,-500.0,0.00011095,2]
[352259278,1739020241289,-500.0,0.00011095,2]
[352259281,1739020241299,-500.0,0.00011095,2]
[352259283,1739020241308,-500.0,0.00011095,2]
[352259285,1739020241317,-4099.51,0.00011095,2]
[352259286,1739020241327,-500.0,0.00011095,2]
[352259288,1739020241336,-500.0,0.00011095,2]
[352259290,1739020241345,-852.48,0.00011095,2]
[352259292,1739020241354,-500.0,0.00011095,2]
[352259294,1739020241363,-500.0,0.00011095,2]
[352259296,1739020241372,-3582.6,0.00011095,2]
[352259298,1739020241382,-4612.53,0.00011095,2]
[352259300,1739020241391,-500.0,0.00011095,2]
[352259302,1739020241400,-3998.5,0.00011095,2]
[352259304,1739020241409,-503.41528639,0.00011095,2]
[352259306,1739020241418,-500.0,0.00011095,2]
[352259308,1739020241430,-1751.59,0.00011095,2]
[352259310,1739020241439,-634.75,0.00011095,2]
[352259313,1739020241450,-500.0,0.00011095,2]
[352259315,1739020241459,-500.0,0.00011095,2]
[352259317,1739020241469,-474.45704257,0.00011095,2]
[352259319,1739020241478,-500.0,0.00011095,2]
[352259321,1739020241488,-596.08398438,0.00011095,2]
[352259323,1739020241498,-500.0,0.00011095,2]
[352259325,1739020241507,-500.0,0.00011095,2]
[352259327,1739020241516,-1674.8,0.00011095,2]
[352259329,1739020241525,-1193.83,0.00011095,2]
[352259331,1739020241534,-675.14,0.00011095,2]
[352259333,1739020241543,-1569.82,0.00011095,2]
[352259335,1739020241552,-500.0,0.00011095,2]
[352259337,1739020241562,-500.0,0.00011095,2]
[352259339,1739020241571,-500.0,0.00011095,2]
[352259341,1739020241587,-1379.38,0.00011095,2]
[352259343,1739020241601,-1092.67,0.00011095,2]
[352259345,1739020241618,-500.0,0.00011095,2]
[352259347,1739020241628,-500.0,0.00011095,2]
[352259349,1739020241638,-931.63,0.00011095,2]
[352259350,1739020241648,-16827.92,0.00011095,2]
[352259353,1739020241658,-500.0,0.00011095,2]
[352259354,1739020241667,-1194.58,0.00011095,2]
[352259356,1739020241677,-500.0,0.00011095,2]
[352259358,1739020241687,-676.98,0.00011095,2]
[352259360,1739020241696,-500.0,0.00011095,2]
[352259362,1739020241707,-500.0,0.00011095,2]
[352259364,1739020241717,-1149.7,0.00011095,2]
[352259366,1739020241727,-154.732,0.0001119,2]
[352259368,1739020241737,-500.0,0.00011232,2]
[352259370,1739020241747,-500.0,0.00011232,2]
[352259372,1739020241756,-500.0,0.00011232,2]
[352259375,1739020241766,-185.95499664,0.00011232,2]
[352259376,1739020241775,-155.93508399,0.00011232,2]
[352259378,1739020241784,-513.93161765,0.00011232,2]
[352259380,1739020241793,-500.0,0.00011232,2]
[352259382,1739020241803,-500.0,0.00011232,2]
[352259384,1739020241816,-733.72,0.00011232,2]
[352259386,1739020241825,-500.0,0.00011232,2]
[352259388,1739020241834,-500.0,0.00011232,2]
[352259390,1739020241843,-512.02,0.00011232,2]
[352259393,1739020241854,-500.0,0.00011232,2]
[352259395,1739020241863,-500.0,0.00011232,2]
[352259397,1739020241873,-500.0,0.00011232,2]
[352259399,1739020241883,-500.0,0.00011232,2]
[352259401,1739020241892,-500.0,0.00011232,2]
[352259402,1739020241901,-500.0,0.00011232,2]
[352259404,1739020241911,-500.0,0.00011232,2]
[352259406,1739020241920,-747.94,0.00011232,2]
[352259408,1739020241929,-500.0,0.00011232,2]
[352259410,1739020241939,-500.0,0.00011232,2]
[352259412,1739020241949,-500.0,0.00011232,2]
[352259415,1739020241961,-365.73,0.00011232,2]